fUSD/lending_fUSD_20250716
["ID","MTS","AMOUNT","RATE_DAILY","PERIOD"]
[372501235,1752663139562,-460.0,0.00022876,2]
[372501236,1752663139572,-605.83,0.00022876,2]
[372501237,1752663139582,-1023.53,0.00022876,2]
[372501238,1752663139593,-2046.51,0.00022876,2]
[372501239,1752663139603,-5496.82,0.00022876,2]
[372501240,1752663139612,-1729.36,0.00022876,2]
[372501241,1752663139622,-845.91,0.00022876,2]
[372501242,1752663139632,-460.0,0.00022876,2]
[372501243,1752663139642,-1153.38,0.00022876,2]
[372501244,1752663139650,-1471.4,0.00022876,2]
[372501245,1752663139658,-460.0,0.00022876,2]
[372501246,1752663139667,-25686.63,0.00022876,2]
[372501247,1752663139676,-2265.87,0.00022876,2]
[372501248,1752663139685,-1804.24,0.00022876,2]
[372501249,1752663139694,-460.0,0.00022876,2]
[372501250,1752663139704,-460.0,0.00022876,2]
[372501251,1752663139714,-801.55,0.00022876,2]
[372501252,1752663139724,-667.91,0.00022876,2]
[372501253,1752663139733,-460.0,0.00022876,2]
[372501254,1752663139742,-460.0,0.00022876,2]
[372501255,1752663139752,-720.01,0.00022876,2]
[372501256,1752663139762,-460.0,0.00022876,2]
[372501257,1752663139772,-912.12,0.00022876,2]
[372501258,1752663139782,-2378.43,0.00022876,2]
[372501259,1752663139791,-1488.97,0.00022876,2]
[372501260,1752663139801,-693.6,0.00022876,2]
[372501261,1752663139811,-568.78,0.00022876,2]
[372501262,1752663139820,-2336.76,0.00022876,2]
[372501263,1752663139830,-1662.59,0.00022876,2]
[372501264,1752663139839,-834.17,0.00022876,2]
[372501265,1752663139849,-3608.17,0.00022876,2]
[372501266,1752663139858,-468.55,0.00022876,2]
[372501267,1752663139868,-578.22,0.00022876,2]
[372501268,1752663139878,-465.11,0.00022876,2]
[372501269,1752663139887,-590.67,0.00022876,2]
[372501270,1752663139897,-1551.69,0.00022876,2]
[372501271,1752663139908,-722.56,0.00022876,2]
[372501272,1752663139919,-460.0,0.00022876,2]
[372501273,1752663139929,-4023.17,0.00022876,2]
[372501274,1752663139939,-517.03,0.00022876,2]
[372501275,1752663139949,-460.0,0.00022876,2]
[372501276,1752663139959,-460.0,0.00022876,2]
[372501277,1752663139968,-3644.36,0.00022876,2]
[372501278,1752663139978,-4710.56,0.00022876,2]
[372501279,1752663139988,-546.65,0.00022876,2]
[372501280,1752663139997,-460.0,0.00022876,2]
[372501281,1752663140007,-460.0,0.00022876,2]
[372501282,1752663140017,-1375.33,0.00022876,2]
[372501283,1752663140027,-3437.5,0.00022876,2]
[372501284,1752663140037,-446.74742552,0.00022876,2]
[372501285,1752663140047,-1086.94,0.00022876,2]
[372501286,1752663140056,-1882.13,0.00022876,2]
[372501287,1752663140066,-819.82,0.00022876,2]
[372501288,1752663140076,-533.59,0.00022876,2]
[372501289,1752663140086,-846.81,0.00022876,2]
[372501290,1752663140094,-10473.68,0.00022876,2]
[372501291,1752663140103,-956.97,0.00022876,2]
[372501292,1752663140112,-460.0,0.00022876,2]
[372501293,1752663140122,-1075.31,0.00022876,2]
[372501294,1752663140132,-10262.44,0.00022876,2]
[372501295,1752663140142,-460.0,0.00022876,2]
[372501296,1752663140152,-7641.39,0.00022876,2]
[372501297,1752663140162,-927.79,0.00022876,2]
[372501298,1752663140172,-460.0,0.00022876,2]
[372501299,1752663140181,-9009.22,0.00022876,2]
[372501300,1752663140192,-1305.47,0.00022876,2]
[372501301,1752663140205,-6402.79,0.00022876,2]
[372501302,1752663140214,-999.84,0.00022876,2]
[372501303,1752663140224,-1048.05,0.00022876,2]
[372501304,1752663140234,-1145.26,0.00022876,2]
[372501305,1752663140245,-1618.81,0.00022876,2]
[372501306,1752663140255,-7522.89,0.00022876,2]
[372501307,1752663140264,-1085.51,0.00022876,2]
[372501308,1752663140275,-460.0,0.00022876,2]
[372501309,1752663140285,-985.55,0.00022876,2]
[372501310,1752663140294,-7023.53,0.00022876,2]
[372501311,1752663140305,-699.45,0.00022876,2]
[372501312,1752663140315,-460.0,0.00022876,2]
[372501313,1752663140325,-163.74524076,0.00022876,2]
[372501314,1752663140335,-4907.65,0.00022876,2]
[372501315,1752663140345,-460.0,0.00022876,2]
[372501316,1752663140354,-460.0,0.00022876,2]
[372501317,1752663140364,-4103.12,0.00022876,2]
[372501318,1752663140374,-587.29,0.00022876,2]
[372501319,1752663140384,-805.39,0.00022876,2]
[372501320,1752663140393,-1101.08,0.00022876,2]
[372501321,1752663140403,-2334.85,0.00022876,2]
[372501322,1752663140414,-460.0,0.00022876,2]
[372501323,1752663140424,-1300.92,0.00022876,2]
[372501324,1752663140434,-1839.74,0.00022876,2]
[372501325,1752663140443,-7022.82,0.00022876,2]
[372501326,1752663140453,-460.0,0.00022876,2]
[372501327,1752663140463,-460.0,0.00022876,2]
[372501328,1752663140473,-460.0,0.00022876,2]
[372501329,1752663140482,-4783.75,0.00022876,2]
[372501330,1752663140492,-460.0,0.00022876,2]
[372501331,1752663140503,-574.7,0.00022876,2]
[372501332,1752663140514,-460.0,0.00022876,2]
[372501333,1752663140523,-11831.05,0.00022876,2]
[372501334,1752663140533,-5175.99,0.00022876,2]
[372501335,1752663140543,-460.0,0.00022876,2]
[372501336,1752663140553,-2063.66,0.00022876,2]
[372501337,1752663140562,-12650.62,0.00022876,2]
[372501338,1752663140572,-787.25,0.00022876,2]
[372501339,1752663140581,-609.0,0.00022876,2]
[372501340,1752663140591,-1721.09,0.00022876,2]
[372501341,1752663140601,-641.88,0.00022876,2]
[372501342,1752663140611,-460.0,0.00022876,2]
[372501343,1752663140621,-495.46994161,0.00022876,2]
[372501344,1752663140630,-2321.93,0.00022876,2]
[372501345,1752663140640,-460.0,0.00022876,2]
[372501346,1752663140650,-1046.05,0.00022876,2]
[372501347,1752663140660,-2399.4,0.00022876,2]
[372501348,1752663140670,-1196.04,0.00022876,2]
[372501349,1752663140679,-5256.36,0.00022876,2]
[372501350,1752663140689,-570.67,0.00022876,2]
[372501351,1752663140698,-460.0,0.00022876,2]
[372501352,1752663140708,-460.0,0.00022876,2]
[372501353,1752663140718,-1199.05,0.00022876,2]
[372501354,1752663140728,-1873.93,0.00022876,2]
[372501355,1752663140738,-6048.28,0.00022876,2]
[372501356,1752663140747,-608.82,0.00022876,2]
[372501357,1752663140757,-647.56,0.00022876,2]
[372501358,1752663140767,-25853.72,0.00022876,2]
[372501359,1752663140777,-3826.55,0.00022876,2]
[372501360,1752663140787,-679.82,0.00022876,2]
[372501361,1752663140797,-644.0,0.00022876,2]
[372501362,1752663140807,-4984.48,0.00022876,2]
[372501363,1752663140817,-587.74,0.00022876,2]
[372501364,1752663140826,-1010.1,0.00022876,2]
[372501365,1752663140836,-1216.26,0.00022876,2]
[372501366,1752663140846,-2657.96,0.00022876,2]
[372501367,1752663140856,-2675.67,0.00022876,2]
[372501368,1752663140866,-2707.25,0.00022876,2]
[372501369,1752663140876,-1531.63,0.00022876,2]
[372501370,1752663140886,-460.0,0.00022876,2]
[372501371,1752663140896,-807.97,0.00022876,2]
[372501372,1752663140906,-460.0,0.00022876,2]
[372501373,1752663140917,-10398.73,0.00022876,2]
[372501374,1752663140928,-2892.99,0.00022876,2]
[372501375,1752663140938,-6155.9,0.00022876,2]
[372501376,1752663140948,-460.0,0.00022876,2]
[372501377,1752663140958,-3663.1,0.00022876,2]
[372501378,1752663140968,-2417.79,0.00022876,2]
[372501379,1752663140978,-783.37,0.00022876,2]
[372501380,1752663140989,-1645.27,0.00022876,2]
[372501381,1752663141000,-5760.76,0.00022876,2]
[372501382,1752663141010,-1156.71,0.00022876,2]
[372501383,1752663141021,-2977.53,0.00022876,2]
[372501384,1752663141031,-4994.77,0.00022876,2]
[372501385,1752663141041,-2707.06,0.00022876,2]
[372501386,1752663141051,-460.0,0.00022876,2]
[372501387,1752663141061,-828.48,0.00022876,2]
[372501388,1752663141072,-1737.41,0.00022876,2]
[372501389,1752663141082,-697.34,0.00022876,2]
[372501390,1752663141092,-1860.1,0.00022876,2]
[372501391,1752663141102,-618.42,0.00022876,2]
[372501392,1752663141112,-3082.79,0.00022876,2]
[372501393,1752663141122,-460.0,0.00022876,2]
[372501394,1752663141132,-763.37,0.00022876,2]
[372501395,1752663141142,-5360.04,0.00022876,2]
[372501396,1752663141152,-1544.88,0.00022876,2]
[372501397,1752663141162,-532.67,0.00022876,2]
[372501398,1752663141172,-566.67,0.00022876,2]
[372501399,1752663141182,-1351.27,0.00022876,2]
[372501400,1752663141192,-1854.73,0.00022876,2]
[372501401,1752663141205,-6960.91,0.00022876,2]
[372501402,1752663141215,-1871.79,0.00022876,2]
[372501403,1752663141225,-498.31,0.00022876,2]
[372501404,1752663141235,-935.71,0.00022876,2]
[372501405,1752663141247,-2952.62,0.00022876,2]
[372501406,1752663141257,-3727.42,0.00022876,2]
[372501407,1752663141267,-4520.63,0.00022876,2]
[372501408,1752663141277,-1354.22,0.00022876,2]
[372501409,1752663141288,-1210.46,0.00022876,2]
[372501410,1752663141298,-647.88,0.00022876,2]
[372501411,1752663141308,-460.0,0.00022876,2]
[372501412,1752663141318,-1674.69,0.00022876,2]
[372501413,1752663141328,-460.0,0.00022876,2]
[372501414,1752663141339,-1807.76,0.00022876,2]
[372501415,1752663141349,-544.05,0.00022876,2]
[372501416,1752663141358,-1562.68,0.00022876,2]
[372501417,1752663141368,-804.49,0.00022876,2]
[372501418,1752663141378,-460.0,0.00022876,2]
[372501419,1752663141388,-460.0,0.00022876,2]
[372501420,1752663141398,-460.0,0.00022876,2]
[372501421,1752663141408,-2967.28,0.00022876,2]
[372501422,1752663141419,-619.88,0.00022876,2]
[372501423,1752663141429,-460.0,0.00022876,2]
[372501424,1752663141440,-1331.59,0.00022876,2]
[372501425,1752663141450,-4930.79,0.00022876,2]
[372501426,1752663141459,-1756.27,0.00022876,2]
[372501427,1752663141469,-460.0,0.00022876,2]
[372501428,1752663141480,-1372.2,0.00022876,2]
[372501429,1752663141490,-2884.75,0.00022876,2]
[372501430,1752663141500,-3471.77,0.00022876,2]
[372501431,1752663141510,-4338.23,0.00022876,2]
[372501432,1752663141520,-1048.9,0.00022876,2]
[372501433,1752663141530,-1304.13,0.00022876,2]
[372501434,1752663141539,-589.94,0.00022876,2]
[372501435,1752663141549,-861.69,0.00022876,2]
[372501436,1752663141559,-460.0,0.00022876,2]
[372501437,1752663141569,-5916.53,0.00022876,2]
[372501438,1752663141579,-771.65,0.00022876,2]
[372501439,1752663141590,-2011.92,0.00022876,2]
[372501440,1752663141600,-469.09,0.00022876,2]
[372501441,1752663141610,-18520.14,0.00022876,2]
[372501442,1752663141621,-1267.95,0.00022876,2]
[372501443,1752663141630,-1896.91,0.00022876,2]
[372501444,1752663141640,-1000.0,0.00022876,2]
[372501445,1752663141650,-6378.4,0.00022876,2]
[372501446,1752663141660,-624.77,0.00022876,2]
[372501447,1752663141671,-6594.98,0.00022876,2]
[372501448,1752663141681,-4665.3,0.00022876,2]
[372501449,1752663141691,-9546.24,0.00022876,2]
[372501450,1752663141701,-1113.8,0.00022876,2]
[372501451,1752663141711,-4540.32,0.00022876,2]
[372501452,1752663141721,-268.75068133,0.00022876,2]
[372501453,1752663141732,-460.0,0.00022876,2]
[372501454,1752663141742,-460.0,0.00022876,2]
[372501455,1752663141752,-575.28,0.00022876,2]
[372501456,1752663141763,-1746.59,0.00022876,2]
[372501457,1752663141773,-2605.38,0.00022876,2]
[372501458,1752663141783,-577.31916035,0.00022876,2]
[372501459,1752663141793,-484.92,0.00022876,2]
[372501460,1752663141803,-4658.6,0.00022876,2]
[372501461,1752663141813,-2501.59,0.00022876,2]
[372501462,1752663141824,-7774.07,0.00022876,2]
[372501463,1752663141835,-570.76,0.00022876,2]
[372501464,1752663141845,-2763.84,0.00022876,2]
[372501465,1752663141856,-5927.89,0.00022876,2]
[372501466,1752663141866,-3322.94,0.00022876,2]
[372501467,1752663141876,-460.0,0.00022876,2]
[372501468,1752663141886,-460.0,0.00022876,2]
[372501469,1752663141896,-7494.33,0.00022876,2]
[372501470,1752663141906,-1011.46,0.00022876,2]
[372501471,1752663141915,-16963.12,0.00022876,2]
[372501472,1752663141926,-1367.25,0.00022876,2]
[372501473,1752663141936,-2065.11,0.00022876,2]
[372501474,1752663141946,-5953.02,0.00022876,2]
[372501475,1752663141957,-3212.42,0.00022876,2]
[372501476,1752663141967,-21344.53,0.00022876,2]
[372501477,1752663141977,-1014.23,0.00022876,2]
[372501478,1752663141987,-5650.16,0.00022876,2]
[372501479,1752663141997,-476.32,0.00022876,2]
[372501480,1752663142008,-2587.67,0.00022876,2]
[372501481,1752663142019,-5415.43,0.00022876,2]
[372501482,1752663142030,-4486.27,0.00022876,2]
[372501483,1752663142040,-1538.9,0.00022876,2]
[372501484,1752663142050,-635.25,0.00022876,2]
[372501485,1752663142060,-2685.11,0.00022876,2]
[372501486,1752663142071,-2744.51,0.00022876,2]
[372501487,1752663142083,-1047.77,0.00022876,2]
[372501488,1752663142094,-460.0,0.00022876,2]
[372501489,1752663142105,-1189.82,0.00022876,2]
[372501490,1752663142116,-802.61,0.00022876,2]
[372501491,1752663142127,-460.0,0.00022876,2]
[372501492,1752663142138,-504.66,0.00022876,2]
[372501493,1752663142149,-573.37,0.00022876,2]
[372501494,1752663142160,-8020.77,0.00022876,2]
[372501495,1752663142173,-5279.75,0.00022876,2]
[372501496,1752663142184,-1356.57,0.00022876,2]
[372501497,1752663142197,-1204.94,0.00022876,2]
[372501498,1752663142208,-460.0,0.00022876,2]
[372501499,1752663142218,-460.0,0.00022876,2]
[372501500,1752663142229,-32484.29,0.00022876,2]
[372501501,1752663142240,-1007.81,0.00022876,2]
[372501502,1752663142250,-676.02,0.00022876,2]
[372501503,1752663142260,-3572.47,0.00022876,2]
[372501504,1752663142271,-460.0,0.00022876,2]
[372501505,1752663142282,-460.0,0.00022876,2]
[372501506,1752663142292,-1061.14,0.00022876,2]
[372501507,1752663142303,-19195.94,0.00022876,2]
[372501508,1752663142314,-684.08,0.00022876,2]
[372501509,1752663142324,-14730.83,0.00022876,2]
[372501510,1752663142334,-3262.8,0.00022876,2]
[372501511,1752663142344,-460.0,0.00022876,2]
[372501512,1752663142355,-460.0,0.00022876,2]
[372501513,1752663142366,-612.3,0.00022876,2]
[372501514,1752663142376,-1225.77,0.00022876,2]
[372501515,1752663142386,-1692.42,0.00022876,2]
[372501516,1752663142397,-3566.5,0.00022876,2]
[372501517,1752663142408,-628.29,0.00022876,2]
[372501518,1752663142421,-22442.02,0.00022876,2]
[372501519,1752663142432,-5682.68,0.00022876,2]
[372501520,1752663142444,-460.0,0.00022876,2]
[372501521,1752663142454,-3509.68,0.00022876,2]
[372501522,1752663142464,-460.0,0.00022876,2]
[372501523,1752663142475,-686.39,0.00022876,2]
[372501524,1752663142485,-1807.34,0.00022876,2]
[372501525,1752663142495,-4110.38,0.00022876,2]
[372501526,1752663142505,-460.0,0.00022876,2]
[372501527,1752663142517,-1598.24,0.00022876,2]
[372501528,1752663142527,-460.0,0.00022876,2]
[372501529,1752663142537,-1745.31,0.00022876,2]
[372501530,1752663142547,-949.55,0.00022876,2]
[372501531,1752663142557,-4959.45,0.00022876,2]
[372501532,1752663142567,-1841.85,0.00022876,2]
[372501533,1752663142577,-2472.8,0.00022876,2]
[372501534,1752663142588,-3547.98,0.00022876,2]
[372501535,1752663142598,-58694.54,0.00022876,2]
[372501536,1752663142608,-2993.43,0.00022876,2]
[372501537,1752663142618,-5628.71,0.00022876,2]
[372501538,1752663142629,-1447.83,0.00022876,2]
[372501539,1752663142638,-460.0,0.00022876,2]
[372501540,1752663142648,-603.39,0.00022876,2]
[372501541,1752663142658,-1683.09,0.00022876,2]
[372501542,1752663142669,-1096.81,0.00022876,2]
[372501543,1752663142679,-2285.96,0.00022876,2]
[372501544,1752663142689,-483.36,0.00022876,2]
[372501545,1752663142699,-460.0,0.00022876,2]
[372501546,1752663142709,-1319.97,0.00022876,2]
[372501547,1752663142719,-5147.01,0.00022876,2]
[372501548,1752663142729,-1144.35,0.00022876,2]
[372501549,1752663142739,-8010.56,0.00022876,2]
[372501550,1752663142749,-639.1,0.00022876,2]
[372501551,1752663142759,-739.23,0.00022876,2]
[372501552,1752663142769,-460.0,0.00022876,2]
[372501553,1752663142779,-6205.36,0.00022876,2]
[372501554,1752663142789,-510.71,0.00022876,2]
[372501555,1752663142799,-2249.11,0.00022876,2]
[372501556,1752663142809,-460.0,0.00022876,2]
[372501557,1752663142820,-4164.71,0.00022876,2]
[372501558,1752663142829,-6769.38,0.00022876,2]
[372501559,1752663142839,-2022.49,0.00022876,2]
[372501560,1752663142849,-1115.74,0.00022876,2]
[372501561,1752663142859,-460.0,0.00022876,2]
[372501562,1752663142869,-485.08,0.00022876,2]
[372501563,1752663142879,-460.0,0.00022876,2]
[372501564,1752663142890,-795.42,0.00022876,2]
[372501565,1752663142900,-258.66388755,0.00022876,2]
[372501566,1752663142910,-2986.83,0.00022876,2]
[372501567,1752663142922,-460.0,0.00022876,2]
[372501568,1752663142932,-830.15,0.00022876,2]
[372501569,1752663142943,-619.04,0.00022876,2]
[372501570,1752663143240,-1181.41,0.00022876,2]
[372501571,1752663143255,-3400.85,0.00022876,2]
[372501572,1752663143264,-1807.42,0.00022876,2]
[372501573,1752663143274,-460.0,0.00022876,2]
[372501574,1752663143283,-195.39204372,0.00022876,2]
[372501575,1752663143293,-460.0,0.00022876,2]
[372501576,1752663143302,-2724.38,0.00022876,2]
[372501577,1752663143311,-135275.72,0.00022876,2]
[372501578,1752663143320,-1356.39,0.00022876,2]
[372501579,1752663143330,-3360.53,0.00022876,2]
[372501580,1752663143339,-460.0,0.00022876,2]
[372501581,1752663143348,-4311.63,0.00022876,2]
[372501582,1752663143358,-7249.88,0.00022876,2]
[372501583,1752663143367,-1607.81,0.00022876,2]
[372501584,1752663143377,-1218.65,0.00022876,2]
[372501585,1752663143387,-469.05,0.00022876,2]
[372501586,1752663143397,-878.69,0.00022876,2]
[372501587,1752663143407,-10952.53,0.00022876,2]
[372501588,1752663143418,-908.48,0.00022876,2]
[372501589,1752663143429,-2188.41,0.00022876,2]
[372501590,1752663143439,-1585.43,0.00022876,2]
[372501591,1752663143449,-460.0,0.00022876,2]
[372501592,1752663143460,-6933.38,0.00022876,2]
[372501593,1752663143470,-7163.36,0.00022876,2]
[372501594,1752663143480,-460.0,0.00022876,2]
[372501595,1752663143490,-279.35373281,0.00022876,2]
[372501596,1752663143499,-460.0,0.00022876,2]
[372501597,1752663143510,-13647.01,0.00022876,2]
[372501598,1752663143519,-1251.22,0.00022876,2]
[372501599,1752663143530,-6833.92,0.00022876,2]
[372501600,1752663143540,-5595.33,0.00022876,2]
[372501601,1752663143549,-2582.73,0.00022876,2]
[372501602,1752663143559,-8217.22,0.00022876,2]
[372501603,1752663143568,-4826.81,0.00022876,2]
[372501604,1752663143578,-1673.31,0.00022876,2]
[372501605,1752663143588,-388.27176009,0.00022876,2]
[372501606,1752663143597,-743.27,0.00022876,2]
[372501607,1752663143606,-6145.91,0.00022876,2]
[372501608,1752663143616,-1655.82,0.00022876,2]
[372501609,1752663143626,-3760.87,0.00022876,2]
[372501610,1752663143636,-4288.94,0.00022876,2]
[372501611,1752663143646,-589.02,0.00022876,2]
[372501612,1752663143655,-460.0,0.00022876,2]
[372501613,1752663143665,-1267.17,0.00022876,2]
[372501614,1752663143675,-13788.05,0.00022876,2]
[372501615,1752663143685,-1974.88,0.00022876,2]
[372501616,1752663143694,-7127.48,0.00022876,2]
[372501617,1752663143704,-5381.58,0.00022876,2]
[372501618,1752663143713,-1882.82,0.00022876,2]
[372501619,1752663143723,-464.21,0.00022876,2]
[372501620,1752663143732,-1745.67,0.00022876,2]
[372501621,1752663143742,-2017.87,0.00022876,2]
[372501622,1752663143751,-6507.01,0.00022876,2]
[372501623,1752663143760,-2383.17,0.00022876,2]
[372501624,1752663143770,-460.0,0.00022876,2]
[372501625,1752663143780,-7346.25,0.00022876,2]
[372501626,1752663143790,-16919.72,0.00022876,2]
[372501627,1752663143800,-460.0,0.00022876,2]
[372501628,1752663143810,-460.0,0.00022876,2]
[372501629,1752663143819,-1542.47,0.00022876,2]
[372501630,1752663143829,-3978.63,0.00022876,2]
[372501631,1752663143839,-480.26,0.00022876,2]
[372501632,1752663143849,-925.97,0.00022876,2]
[372501633,1752663143859,-10810.3,0.00022876,2]
[372501634,1752663143872,-612.19,0.00022876,2]
[372501635,1752663143882,-1020.48,0.00022876,2]
[372501636,1752663143892,-1531.25,0.00022876,2]
[372501637,1752663143901,-4266.26,0.00022876,2]
[372501638,1752663143912,-2510.73,0.00022876,2]
[372501639,1752663143922,-460.0,0.00022876,2]
[372501640,1752663143932,-460.0,0.00022876,2]
[372501641,1752663143942,-2857.59,0.00022876,2]
[372501642,1752663143951,-1572.04,0.00022876,2]
[372501643,1752663143962,-600.0,0.00022883,2]
[372501644,1752663143972,-400.0,0.0002297,2]
[372501645,1752663143982,-168.0,0.00022978,2]
[372501646,1752663143992,-295.61600652,0.00023,7]
[372501647,1752663144002,-428.61577412,0.00023,2]
[372501648,1752663144012,-980.0,0.00023,4]
[372501649,1752663144021,-1000.0,0.00023,14]
[372501650,1752663144031,-200.0,0.00023,2]
[372501651,1752663144041,-158.0,0.00023,7]
[372501652,1752663144050,-4024.61,0.00023007,2]
[372501653,1752663144060,-580.0,0.00023013,2]
[372501654,1752663144070,-1607.01,0.00023013,2]
[372501655,1752663144079,-1539.29,0.00023013,2]
[372501656,1752663144089,-460.0,0.00023013,2]
[372501657,1752663144099,-460.0,0.00023013,2]
[372501658,1752663144108,-519.13,0.00023013,2]
[372501659,1752663144117,-460.0,0.00023013,2]
[372501660,1752663144127,-676.6,0.00023013,2]
[372501661,1752663144137,-460.0,0.00023013,2]
[372501662,1752663144147,-460.0,0.00023013,2]
[372501663,1752663144156,-460.0,0.00023013,2]
[372501664,1752663144166,-294.84902687,0.00023013,2]
[372501665,1752663144175,-505.45,0.00023013,2]
[372501666,1752663144185,-765.61,0.00023013,2]
[372501667,1752663144195,-522.62,0.00023013,2]
[372501668,1752663144209,-460.0,0.00023013,2]
[372501669,1752663144219,-538.58,0.00023013,2]
[372501670,1752663144229,-460.0,0.00023013,2]
[372501671,1752663144239,-186.13596927,0.00023013,2]
[372501672,1752663144249,-460.0,0.00023013,2]
[372501673,1752663144259,-460.0,0.00023013,2]
[372501674,1752663144269,-924.61,0.00023013,2]
[372501675,1752663144279,-609.32,0.00023013,2]
[372501676,1752663144289,-694.23,0.00023013,2]
[372501677,1752663144299,-832.33,0.00023013,2]
[372501678,1752663144308,-832.33,0.00023013,2]
[372501679,1752663144318,-460.0,0.00023013,2]
[372501680,1752663144327,-460.0,0.00023013,2]
[372501681,1752663144337,-983.47,0.00023013,2]
[372501682,1752663144346,-460.0,0.00023013,2]
[372501683,1752663144355,-597.48,0.00023013,2]
[372501684,1752663144365,-460.0,0.00023013,2]
[372501685,1752663144375,-935.9,0.00023013,2]
[372501686,1752663144385,-891.24,0.00023013,2]
[372501687,1752663144394,-644.94,0.00023013,2]
[372501688,1752663144404,-954.44,0.00023013,2]
[372501689,1752663144413,-460.0,0.00023013,2]
[372501690,1752663144423,-731.16,0.00023013,2]
[372501691,1752663144433,-833.42,0.00023013,2]
[372501692,1752663144442,-523.46,0.00023013,2]
[372501693,1752663144451,-460.0,0.00023013,2]
[372501694,1752663144461,-500.0,0.00023013,5]
[372501695,1752663144470,-460.0,0.00023013,2]
[372501696,1752663144480,-460.0,0.00023013,2]
[372501697,1752663144490,-774.89,0.00023013,2]
[372501698,1752663144500,-488.59,0.00023013,2]
[372501699,1752663144509,-518.16,0.00023013,2]
[372501700,1752663144519,-460.0,0.00023013,2]
[372501701,1752663144528,-460.0,0.00023013,2]
[372501702,1752663144538,-460.0,0.00023013,2]
[372501703,1752663144547,-876.74,0.00023013,2]
[372501704,1752663144557,-1277.44,0.00023013,2]
[372501705,1752663144566,-737.68,0.00023013,2]
[372501706,1752663144576,-289.38556779,0.00023013,2]
[372501707,1752663144586,-460.0,0.00023013,2]
[372501708,1752663144595,-566.92,0.00023013,2]
[372501709,1752663144605,-460.0,0.00023013,2]
[372501710,1752663144615,-819.52,0.00023013,2]
[372501711,1752663144624,-529.96,0.00023013,2]
[372501712,1752663144634,-460.0,0.00023013,2]
[372501713,1752663144643,-460.0,0.00023013,2]
[372501714,1752663144652,-460.0,0.00023013,2]
[372501715,1752663144662,-509.23,0.00023013,2]
[372501716,1752663144672,-460.0,0.00023013,2]
[372501717,1752663144682,-460.0,0.00023013,2]
[372501718,1752663144691,-732.88,0.00023013,2]
[372501719,1752663144701,-992.29,0.00023013,2]
[372501720,1752663144710,-1012.49,0.00023013,2]
[372501721,1752663144719,-518.81,0.00023013,2]
[372501722,1752663144729,-460.0,0.00023013,2]
[372501723,1752663144738,-460.0,0.00023013,2]
[372501724,1752663144748,-1830.19,0.00023013,2]
[372501725,1752663144758,-1118.14,0.00023013,2]
[372501726,1752663144767,-460.0,0.00023013,2]
[372501727,1752663144777,-698.13,0.00023013,2]
[372501728,1752663144787,-536.27,0.00023013,2]
[372501729,1752663144796,-1149.74,0.00023013,2]
[372501730,1752663144806,-460.0,0.00023013,2]
[372501731,1752663144815,-1545.31,0.00023013,2]
[372501732,1752663144825,-460.0,0.00023013,2]
[372501733,1752663144835,-460.0,0.00023013,2]
[372501734,1752663144844,-726.17,0.00023013,2]